Cogmind - Beta 14 @@@ ROGUE MODE // 2025.01.05 @ 02:08:49 Player: Beef Result: Destroyed by H-77 Assassin with High-powered Shotgun Performance ------------- Evolutions (6) 3000 Regions Visited (18) 3600 Robots Destroyed (234) 1170 Value Destroyed (11622) 11622 Prototype IDs (22) 440 Alien Tech Used (0) 0 Bonus (9454) 9454 TOTAL SCORE: 29286 Bonus ------- High Alert Combat Kills 3171 Follower Combat Kills 4500 Entered Garrisons 800 Used RIF Installer 2500 Network Hubs Disabled 200 Built Enhanced Grunts 300 A7 Reached Mainframe 300 Met R17 at Cetus 500 Friendly Fire -2817 Cogmind --------- Core Integrity 0/1150 Matter 235/300 Energy 100/100 System Corruption 10% Temperature Cool (0) Movement Core (50) Location -4/Factory Parts ------- > --- POWER (1) -------- (None) > --- PROPULSION (6) --- (None) > --- UTILITY (10) ----- Experimental Optical Array Advanced Terrain Scan Processor > --- WEAPON (2) ------- (None) > --- INVENTORY (5) ---- Component Analysis Suite Advanced Field Recycling Unit (0) Heavy Proton Cannon Railgun Improved Remote Datajack Peak State ------------ > --- POWER ------------ Particle Reactor > --- PROPULSION ------- Flexi-carbon Leg Flexi-carbon Leg Flexi-carbon Leg Advanced VSS Leg > --- UTILITY ---------- Advanced Heat Sink Large Storage Unit Advanced Sensor Array Launcher Guidance Computer Core Analyzer Centrium Medium Armor Plating Centrium Medium Armor Plating System Shield Relay Coupler [Heavy] Relay Coupler [Behemoth] > --- WEAPON ----------- Advanced Variable Charge Gun Quantum Rifle > --- INVENTORY -------- Particle Reactor Improved Titanium Leg Flexi-carbon Leg Improved VSS Leg Improved Transmission Jammer Improved Remote Force Field Advanced Variable Charge Gun Advanced KE Penetrator Advanced KE Penetrator Advanced KE Penetrator Long-range Missile Launcher Precision Rocket Launcher Improved Remote Datajack Improved Remote Datajack Lance [Rating: 107] Favorites ----------- Power Neutrino Core Engine Improved Deuterium Engine Power Core Neutrino Core Reactor Particle Reactor Propulsion Aluminum Leg Treads Light Treads Leg Aluminum Leg Wheel Wheel Hover Unit Linear Gravjet Flight Unit VTOL Module Utility Large Storage Unit Device Advanced Heat Sink Storage Large Storage Unit Processor Core Analyzer Hackware Relay Coupler [Grunt] Protection Improved Light Armor Plating Weapon Quantum Rifle Energy Gun Quantum Rifle Energy Cannon Cooled Particle Cannon Ballistic Gun Enhanced Autogun Ballistic Cannon Gauss Cannon Launcher Grenade Launcher Special Weapon Remote Datajack Slashing Weapon Axe Piercing Weapon Lance Build | -11 -10 -10 -10 -9 -8 -8 -8 -8 -7 -7 -6 -6 -5 -5 -5 -5 -5 -4 ------- Run | Yrd Mat Min Exi Min Mat Gar Mat Gar Fac Gar Fac Gar Fac Ext Cet Arc Hub Fac Slots Evolved 12 | . . . . . 4 . . . 2 . 2 . 2 . . . . 2 Power . | . . . . . . . . . . . . . . . . . . . Propulsion 4 | . . . . . 2 . . . . . . . . . . . . 2 Utility 8 | . . . . . 2 . . . 2 . 2 . 2 . . . . . Weapon . | . . . . . . . . . . . . . . . . . . . Parts Attached 383 | 8 1 1 2 3 23 23 17 48 24 50 40 13 13 36 11 5 29 36 Power 30 | 1 . . . 1 1 2 2 2 1 5 1 1 1 4 . 1 1 6 Engine 12 | 1 . . . 1 . . 1 1 1 2 1 . . . . . 1 3 Core 17 | . . . . . 1 2 1 1 . 3 . 1 1 4 . . . 3 Reactor 1 | . . . . . . . . . . . . . . . . 1 . . Propulsion 104 | 3 . . . . 8 7 7 15 8 17 8 2 3 5 1 2 12 6 Treads 11 | 2 . . . . 2 . . 7 . . . . . . . . . . Leg 82 | 1 . . . . 6 7 7 8 8 17 8 2 3 5 1 2 7 . Wheel 5 | . . . . . . . . . . . . . . . . . . 5 Hover 1 | . . . . . . . . . . . . . . . . . . 1 Flight 5 | . . . . . . . . . . . . . . . . . 5 . Utility 101 | 1 1 1 2 . 7 4 3 8 7 12 12 5 5 13 3 . 6 11 Device 34 | . . . 1 . 2 2 1 3 4 3 1 2 1 5 . . 3 6 Storage 5 | 1 1 . . . 1 . . . . . 1 . . . . . . 1 Processor 11 | . . . . . 1 . . 2 1 . 1 . . 1 . . 1 4 Hackware 24 | . . . . . . . . 2 . 8 6 1 4 2 . . 1 . Protection 27 | . . 1 1 . 3 2 2 1 2 1 3 2 . 5 3 . 1 . Artifact . | . . . . . . . . . . . . . . . . . . . Weapon 148 | 3 . . . 2 7 10 5 23 8 16 19 5 4 14 7 2 10 13 Energy Gun 50 | . . . . . 5 6 1 3 1 5 8 2 1 5 2 2 5 4 Energy Cannon 4 | . . . . . . . . . 1 1 . . . 1 . . . 1 Ballistic Gun 22 | 3 . . . 1 1 . 3 10 . . 1 . . 1 1 . . 1 Ballistic Cannon 7 | . . . . . . . . . 2 4 . . . . 1 . . . Launcher 32 | . . . . 1 1 4 1 7 4 . 3 . . 5 2 . . 4 Special Weapon 22 | . . . . . . . . 3 . 4 5 1 3 2 . . 3 1 Impact Weapon . | . . . . . . . . . . . . . . . . . . . Slashing Weapon 6 | . . . . . . . . . . 2 2 2 . . . . . . Piercing Weapon 5 | . . . . . . . . . . . . . . . 1 . 2 2 Special Melee Weapon . | . . . . . . . . . . . . . . . . . . . Unidentified Prototypes 10 | . . . 1 . 1 . 2 . 1 . 1 . . . 2 . . 2 Corrupted Parts 3 | . . . . . . . . . . . 1 . . . 1 . 1 . System Corruption 29 | . . . . . . . . . . . 7 . . . 9 . 13 . Parts Lost 89 | . . . . . 5 3 3 12 6 12 2 . . 7 1 . 12 26 Power 9 | . . . . . . . . 2 . 2 . . . 2 . . . 3 Propulsion 30 | . . . . . 2 . 1 2 3 5 . . . . 1 . 6 10 Utility 31 | . . . . . 2 1 2 3 2 3 2 . . 4 . . 4 8 Weapon 19 | . . . . . 1 2 . 5 1 2 . . . 1 . . 2 5 Highest Loss Streak 17 | . . . . . 3 2 2 3 3 4 1 . . 2 1 . 11 17 To Critical Strikes 2 | . . . . . . . . . . . . . . 1 . . . 1 Average Slot Usage (%) 95 | . 85 99 100 100 86 99 97 96 93 98 97 99 98 97 100 99 94 56 Engine 3 | . 14 14 14 14 6 . 3 2 3 3 4 . . . . . . 1 Core 3 | . . . . . 2 9 5 6 3 3 1 5 5 4 5 1 . 1 Treads 6 | . 28 28 28 28 17 . . 22 . . . . . . . . . . Leg 21 | . . . . . 9 36 36 13 29 29 26 26 23 23 23 23 20 . Device 6 | . . . 4 . 9 9 9 3 10 6 6 8 7 8 11 11 10 5 Storage 7 | . 14 14 14 14 9 9 9 9 7 7 6 6 5 5 5 5 4 4 Processor 11 | . . . . . 2 9 9 13 10 15 13 13 11 7 11 11 15 13 Hackware 9 | . . . . . . . . 4 7 13 17 10 19 18 17 17 10 3 Protection 6 | . . 13 9 14 11 8 6 3 2 . 5 12 11 12 11 11 10 . Energy Gun 6 | . . . . . 4 17 5 5 2 6 6 9 5 7 5 11 8 . Ballistic Gun 4 | . 28 28 28 27 12 . 12 10 1 . . . . . 1 . . . Slashing Weapon 1 | . . . . . . . . . . 3 3 3 . . . . . . Peak Build Rating 107 | 6 7 8 13 9 27 31 37 41 50 48 76 80 87 95 104 107 107 77 Average Rating 52 | 4 6 7 9 8 17 27 31 32 44 43 62 77 84 87 97 106 95 45 On Entrance 44 | . 6 6 8 8 9 27 26 37 38 43 48 74 76 85 92 103 107 44 Naked Turns . | . . . . . . . . . . . . . . . . . . . Heaviest Build 84 | 12 27 30 31 32 37 38 39 39 49 47 52 60 62 84 74 68 78 44 Greatest Support 80 | 40 40 40 40 40 60 40 60 80 70 65 73 73 73 78 78 78 78 46 Greatest Overweight (x) 3 | . . . . . . . . 1 . . 1 . . 1 . . 1 3 Average Overweight (x) . | . . . . . . . . . . . . . . . . . . . Largest Inventory Capacity 15 | 8 15 15 15 15 15 15 15 15 15 15 15 15 15 15 15 15 15 10 Average Capacity 14 | 7 12 15 15 15 15 15 15 15 15 15 15 15 15 15 15 15 14 9 Most Carried 15 | 4 7 9 9 12 15 15 15 15 15 15 15 15 15 15 15 15 15 10 Average Carried 13 | 2 6 8 9 11 12 14 14 14 14 14 14 14 14 13 14 14 13 7 Final Capacity 15 | 8 15 15 15 15 15 15 15 15 15 15 15 15 15 15 15 15 5 5 Final Carried 15 | 4 7 9 9 12 15 14 15 13 14 15 15 15 15 15 14 15 4 5 Class Distribution -------------------- 47% | Bothacker-Mutant 36% | Scavenger-Mutant 14% | Mutant Dominant Class ---------------- Mutant | -10/Materials Mutant | -10/Mines Mutant | -10/Exiles Mutant | -9/Mines Mutant | -8/Materials Scavenger-Mutant | -8/Garrison Scavenger-Mutant | -8/Materials Scavenger-Mutant | -8/Garrison Bothacker-Mutant | -7/Factory Bothacker-Mutant | -7/Garrison Bothacker-Mutant | -6/Factory Bothacker-Mutant | -6/Garrison Bothacker-Mutant | -5/Factory Bothacker-Mutant | -5/Extension Scavenger-Mutant | -5/Cetus Scavenger-Mutant | -5/Archives Scavenger-Mutant | -5/Hub_04(d) Scavenger-Mutant | -4/Factory Resources | -11 -10 -10 -10 -9 -8 -8 -8 -8 -7 -7 -6 -6 -5 -5 -5 -5 -5 -4 ----------- Run | Yrd Mat Min Exi Min Mat Gar Mat Gar Fac Gar Fac Gar Fac Ext Cet Arc Hub Fac Matter Collected 8106 | 250 41 81 . 174 479 385 569 1463 256 1202 532 370 282 707 364 64 335 552 Remotely . | . . . . . . . . . . . . . . . . . . . Salvage Created 8678 | . 41 90 . 366 608 840 597 1021 604 580 1068 81 115 1187 26 . 821 633 Parts 439 | . 7 4 . 23 37 40 34 56 32 34 57 2 6 44 2 . 40 21 Haulers Intercepted 9 | . . . . . 1 . 2 . . . 3 . . 1 . . 2 . Recyclers Shooed 7 | . . . . . . . . . 1 . . . . 1 . . . 5 Parts Field Recycled . | . . . . . . . . . . . . . . . . . . . Retrieved Matter . | . . . . . . . . . . . . . . . . . . . Parts Self-Destructed . | . . . . . . . . . . . . . . . . . . . Prevented . | . . . . . . . . . . . . . . . . . . . Kills | -11 -10 -10 -10 -9 -8 -8 -8 -8 -7 -7 -6 -6 -5 -5 -5 -5 -5 -4 ------- Run | Yrd Mat Min Exi Min Mat Gar Mat Gar Fac Gar Fac Gar Fac Ext Cet Arc Hub Fac Combat Hostiles Destroyed 172 | . 3 2 . 9 12 24 12 24 22 13 12 . 1 17 4 . 5 12 Melee 2 | . . . . . . . . . . 1 1 . . . . . . . Guns 87 | . 3 2 . 7 8 13 11 17 3 2 6 . 1 5 2 . 5 2 Cannons 17 | . . . . . . . . . 5 9 . . . 3 . . . . AOE 64 | . . . . 2 4 11 1 7 14 . 5 . . 8 2 . . 10 Classes Destroyed 19 | . 1 1 . . 6 2 2 2 2 1 . . . 1 . . 1 . Worker 19 | . . . . . 2 . 1 . 2 . 6 . . 1 . . 3 4 Builder 12 | . . . . . . . 1 . 2 . 3 . . 4 . . 1 1 Tunneler 3 | . . . . . 1 . . . . . . . . . . . . 2 Hauler 9 | . . . . . 1 . 2 . . . 3 . . 1 . . 2 . Recycler 5 | . . . . . 1 . . . . . 2 . . 1 . . . 1 Operator 3 | . . . . . 1 . . . . . . . . 2 . . . . Drone 1 | . . . . . . . 1 . . . . . . . . . . . Watcher 5 | . . . . . . . . . 1 . . . . 1 1 . 1 1 Swarmer 33 | . 3 . . . 5 7 3 . 5 1 4 . . 1 . . 4 . Cutter 2 | . . . . . . . . . . 2 . . . . . . . . Grunt 80 | . . 2 . 9 4 11 4 8 14 9 . . . 8 . . 1 10 Brawler 4 | . . . . . . 1 . . . . 1 . . 1 . . . 1 Duelist 3 | . . . . . . . . . 1 1 1 . . . . . . . Protector 1 | . . . . . . . . . . . . . . . . . 1 . Sentry 21 | . . . . . 3 4 2 9 1 . . . . 1 . . . 1 Specialist 1 | . . . . . . . . 1 . . . . . . . . . . Hunter 17 | . . . . . . 1 2 2 1 . 4 . . 5 . . 1 1 Programmer 7 | . . . . . . . . 4 . . 2 . 1 . . . . . Behemoth 1 | . . . . . . . . . . . . . . 1 . . . . Cetus Guard 4 | . . . . . . . . . . . . . . . 4 . . . Enhanced Grunt 3 | . . . . . . . . . . . . . . . . . 3 . Savage 1 | . . . . . . . . . . . . . 1 . . . . . Best Kill Streak 10 | . 3 2 . 5 6 10 5 3 7 3 6 . 1 6 5 . 5 7 Combat Bots Only 10 | . 3 2 . 5 6 10 5 3 5 3 3 . 1 5 4 . 4 4 Max Kills in Single Turn 6 | . 1 1 . 2 4 2 1 2 4 2 4 . 1 4 1 . 6 3 Gunslinging 1 | . . . . . . . . . 1 . . . . . . . 1 . Exploded 4 | . . . . 2 4 2 1 2 3 . 3 . . 3 1 . . 3 Melee 1 | . . . . . . . . . . 1 1 . . . . . . . Uniques/NPCs Destroyed . | . . . . . . . . . . . . . . . . . . . Combat | -11 -10 -10 -10 -9 -8 -8 -8 -8 -7 -7 -6 -6 -5 -5 -5 -5 -5 -4 -------- Run | Yrd Mat Min Exi Min Mat Gar Mat Gar Fac Gar Fac Gar Fac Ext Cet Arc Hub Fac Hostile Shots Fired 1416 | . 20 7 . 27 68 70 65 194 170 175 101 . 21 121 56 14 96 211 Missed 466 | . 6 2 . 7 15 16 23 52 65 53 44 . 9 39 18 6 27 84 Damage Taken 16625 | . 101 76 . 274 764 730 545 2348 1690 1527 1027 . 426 1199 540 115 2402 2861 Core 3125 | . 10 13 . 48 37 91 70 290 355 272 236 . 28 43 111 . 364 1157 Absorbed by Shields 1387 | . . . . . . . . . . . . . 82 605 472 89 139 . Redirected to Shielding 162 | . . . . . 58 40 . . 59 5 . . . . . . . . Ignored by Resistances 58 | . . . . . . . . . 28 . . . . . . . 30 . Regen/Repaired (Parts) 23 | . . . . . . . . . . . 23 . . . . . . . Core Remaining (%) 51 | 100 . . . 71 . . . 11 . 10 . 72 . . . . 45 . Volleys Fired 720 | . 9 5 . 20 56 50 46 146 37 66 73 14 30 84 21 6 20 37 Largest 2 | . 2 2 . 2 2 2 2 2 2 2 2 2 2 2 2 2 2 2 Hottest 240 | . 40 40 . 40 138 138 128 105 87 130 188 188 188 188 240 174 174 182 Shots Fired 1159 | . 18 10 . 39 109 86 90 248 59 98 96 21 36 126 34 10 36 43 Gun 813 | . 18 10 . 38 106 75 88 215 16 26 57 15 13 63 18 10 32 13 Cannon 144 | . . . . . . . . . 28 64 . . . 38 9 . . 5 Launcher 101 | . . . . 1 3 11 2 19 15 . 5 . . 16 7 . . 22 Special 101 | . . . . . . . . 14 . 8 34 6 23 9 . . 4 3 Kinetic 431 | . 18 10 . 38 79 . 58 140 22 48 2 . . 1 13 . . 2 Thermal 519 | . . . . . 27 75 30 73 22 42 55 15 13 100 14 10 32 11 Explosive 101 | . . . . 1 3 11 2 19 15 . 5 . . 16 7 . . 22 Electromagnetic 7 | . . . . . . . . 2 . . . . . . . . . 5 Robot Hit Streak 23 | . 5 6 . 7 23 23 11 14 6 12 6 4 11 9 16 3 14 10 Robot Miss Streak 4 | . 4 1 . 3 3 3 2 4 4 4 3 1 3 3 3 1 2 2 Penetration Max 1 | . . . . . . . . . . 1 . . . . 1 . . . Secondary Targets 10 | . . . . . 1 2 1 2 1 . . . 1 . 1 . 1 . Max Gunslinging Chain 1 | . . . . . 1 1 1 1 1 . . . 1 . 1 . 1 . Shots Hit Robots 727 | . 10 7 . 24 77 62 59 117 35 64 69 11 24 76 23 7 24 38 Core Hits 493 | 2 3 4 . 14 27 46 29 61 49 30 37 6 4 63 28 3 33 54 Critical Kills 6 | . . . . . . . 1 1 2 2 . . . . . . . . Critical Parts Destroyed 2 | . . . . 1 . . . . 1 . . . . . . . . . Critical Strikes 28 | . . . . 1 2 7 2 2 3 10 . . . . 1 . . . Burn 11 | . . . . . 2 7 1 . . 1 . . . . . . . . Meltdown 1 | . . . . . . . . . . 1 . . . . . . . . Destroy 8 | . . . . 1 . . 1 2 3 1 . . . . . . . . Blast 7 | . . . . . . . . . . 6 . . . . 1 . . . Sever 1 | . . . . . . . . . . 1 . . . . . . . . Melee Attacks 108 | . . . . . . . . . . 45 12 21 . . 11 . 1 18 Impact . | . . . . . . . . . . . . . . . . . . . Slashing 78 | . . . . . . . . . . 45 12 21 . . . . . . Piercing 30 | . . . . . . . . . . . . . . . 11 . 1 18 Sneak Attacks 12 | . . . . . . . . . . 1 2 1 . . . . . 8 Combat Hostiles 1 | . . . . . . . . . . 1 . . . . . . . . Follow-up Attacks . | . . . . . . . . . . . . . . . . . . . Damage Inflicted 28188 | 5 131 87 . 407 1369 1936 1093 2901 2957 1947 2593 431 256 4494 1236 206 1927 4212 Guns 9992 | . 131 87 . 302 1192 1103 982 1871 265 194 1047 86 236 1051 295 206 661 283 Cannons 2674 | . . . . . . . . . 338 1053 . . . 977 197 . . 109 Explosions 13426 | . . . . 105 177 833 111 1030 2330 . 1259 . . 2429 744 . 1266 3142 Melee 2005 | . . . . . . . . . . 700 282 345 . . . . . 678 Ramming 91 | 5 . . . . . . . . 24 . 5 . 20 37 . . . . Kinetic 4760 | . 131 87 . 302 778 . 704 1349 278 733 59 . . 21 269 . . 49 Thermal 8172 | . . . . . 414 1103 278 522 325 514 1228 86 236 2007 223 206 796 234 Explosive 11920 | . . . . 105 177 833 111 1030 2330 . 1019 . . 2429 744 . . 3142 Electromagnetic 1240 | . . . . . . . . . . . . . . . . . 1131 109 Impact . | . . . . . . . . . . . . . . . . . . . Slashing 1327 | . . . . . . . . . . 700 282 345 . . . . . . Piercing 678 | . . . . . . . . . . . . . . . . . . 678 Highest Corruption 51 | . . . . . 3 4 4 10 . . 9 9 5 6 15 15 51 10 Average Corruption 8 | . . . . . 2 3 4 9 . . 7 9 4 5 10 15 18 7 Corruption Purged . | . . . . . . . . . . . . . . . . . . . Corruption Blocked . | . . . . . . . . . . . . . . . . . . . Effects 309 | . . . . . 6 18 11 87 . . 33 44 2 37 21 13 33 4 Message Errors 83 | . . . . . 1 4 3 24 . . 7 17 . 9 6 4 8 . Matter Fused 69 | . . . . . 2 4 2 16 . . 7 6 1 9 8 4 7 3 Heat Flow Errors 28 | . . . . . . 2 . 12 . . 4 4 . 2 2 . 2 . Energy Discharges 35 | . . . . . 1 3 3 5 . . 6 7 1 4 . 2 3 . Parts Rejected 3 | . . . . . . . 1 . . . . 1 . . . . 1 . Parts Fused 4 | . . . . . . . . 2 . . . . . . . . 2 . Data Loss (minor) 36 | . . . . . 1 3 2 10 . . 5 3 . 5 3 . 4 . Data Loss (major) 15 | . . . . . . 1 . 1 . . 2 4 . 5 1 . 1 . Misfires 14 | . . . . . 1 . . 8 . . 1 1 . 2 . 1 . . Alerts 7 | . . . . . . . . 2 . . . 1 . 1 1 . 1 1 Misdirections 6 | . . . . . . . . 1 . . . . . . . 1 4 . Weapon Failures 9 | . . . . . . 1 . 6 . . 1 . . . . 1 . . Overload Shots 4 | . . . . . . . . . . . . . . . 4 . . . Overflow Damage 508 | . . . . . 12 3 . . 38 42 64 60 . 53 4 . 6 226 Projectiles 24 | . . . . . . . . . 4 8 . . . 8 4 . . . Explosions 210 | . . . . . 12 3 . . 34 . 32 . . 45 . . 6 78 Melee 274 | . . . . . . . . . . 34 32 60 . . . . . 148 Knockbacks 6 | . . . . . . . . . . 6 . . . . . . . . Impact . | . . . . . . . . . . . . . . . . . . . Kinetic 6 | . . . . . . . . . . 6 . . . . . . . . Secondary . | . . . . . . . . . . . . . . . . . . . Self-Inflicted Damage 519 | . . . . . . 20 . 161 146 . . . . . . . 90 102 Shots 15 | . . . . . . 1 . 6 3 . . . . . . . 1 4 Rammed 3 | 3 . . . . . . . . . . . . . . . . . . Targets Rammed 17 | 3 . . . . . . . . 4 . 1 . 3 6 . . . . Kicked 14 | . . . . . . . . . 4 . 1 . 3 6 . . . . Crushed . | . . . . . . . . . . . . . . . . . . . Highest Temperature 512 | . . 4 . 17 135 212 309 304 19 72 301 256 509 512 308 94 391 198 Average Temperature 92 | . . 2 . 6 45 60 111 72 8 19 80 61 251 147 103 44 148 50 Received Heat Transfer 3886 | . . 45 . 147 342 270 117 765 552 684 138 . 18 291 24 12 105 376 Effects 18 | . . . . . . . . . . . . . 6 9 . . 3 . Shutdowns 4 | . . . . . . . . . . . . . 2 1 . . 1 . Energy Bleed 3 | . . . . . . . . . . . . . 1 2 . . . . Interference 7 | . . . . . . . . . . . . . 3 2 . . 2 . Matter Decay 1 | . . . . . . . . . . . . . . 1 . . . . Short Circuit 1 | . . . . . . . . . . . . . . 1 . . . . Damage (major) 2 | . . . . . . . . . . . . . . 2 . . . . Siege Activations . | . . . . . . . . . . . . . . . . . . . Robots Corrupted 3 | . . . . . . . . . . . . . . . . . 3 . Combat Hostiles . | . . . . . . . . . . . . . . . . . . . Parts Fried 7 | . . . . . . . . . . . . . . 1 . . 6 . Impact Corruptions . | . . . . . . . . . . . . . . . . . . . Robots Melted 3 | . . . . . . 1 . . . 1 . . . 1 . . . . Combat Hostiles 2 | . . . . . . . . . . 1 . . . 1 . . . . Parts Melted 16 | . . . . 2 2 1 . 2 . 3 2 . . 4 . . . . Heat Transferred 12405 | . . . . . 999 2622 703 733 518 962 1395 111 259 2313 296 259 939 296 Parts Sabotaged 3 | . . . . . . . . . . . . . . . . . 3 . Parts Stolen . | . . . . . . . . . . . . . . . . . . . Parts Stripped . | . . . . . . . . . . . . . . . . . . . Power Chain Reactions 1 | . . . . . . . . . . . . . . . . . 1 . Alert | -11 -10 -10 -10 -9 -8 -8 -8 -8 -7 -7 -6 -6 -5 -5 -5 -5 -5 -4 ------- Run | Yrd Mat Min Exi Min Mat Gar Mat Gar Fac Gar Fac Gar Fac Ext Cet Arc Hub Fac Peak Influence 2010 | . 122 97 . 215 238 873 816 2010 1376 1917 1028 1156 761 1342 873 392 1385 754 Initial 1054 | . . 47 . . 5 154 420 400 1054 963 1005 635 606 328 751 269 137 642 Average 832 | . 59 95 . 145 62 608 576 1124 1223 1315 848 860 641 790 778 378 613 563 Maximum Alert Level 5 | . . . . 1 1 3 3 5 4 5 3 4 3 4 3 1 4 3 Low Security (%) 11 | 100 100 100 . 82 95 19 . . . . . . . . . . 23 . Level 1 3 | . . . . 17 4 3 . . . . . . . 7 . 100 12 . Level 2 23 | . . . . . . 26 90 24 . . 7 13 83 36 34 . 27 84 Level 3 37 | . . . . . . 50 9 31 19 26 92 77 16 44 65 . 16 15 Level 4 17 | . . . . . . . . 22 80 54 . 9 . 11 . . 19 . Level 5 6 | . . . . . . . . 21 . 19 . . . . . . . . High Security . | . . . . . . . . . . . . . . . . . . . Max Security . | . . . . . . . . . . . . . . . . . . . Squads Dispatched 58 | . . . . 1 2 . . . 6 . 20 . 5 10 . . 10 4 Investigation 13 | . . . . 1 . . . . . . 6 . . 5 . . 1 . Extermination 5 | . . . . . . . . . . . 2 . 2 . . . . 1 Reinforcement 24 | . . . . . 2 . . . 3 . 6 . 1 4 . . 6 2 Assault 5 | . . . . . . . . . 1 . . . 2 1 . . 1 . Garrison 11 | . . . . . . . . . 2 . 6 . . . . . 2 1 Intercept . | . . . . . . . . . . . . . . . . . . . Searches Triggered . | . . . . . . . . . . . . . . . . . . . Construction Impeded 10 | . . . . . 1 . . . 2 . 1 . . 3 . . 1 2 Haulers Reinforced 3 | . . . . . . . . . . . 1 . . . . . 2 . Active Scanning Responses . | . . . . . . . . . . . . . . . . . . . Cargo Convoy Interrupts . | . . . . . . . . . . . . . . . . . . . Stealth | -11 -10 -10 -10 -9 -8 -8 -8 -8 -7 -7 -6 -6 -5 -5 -5 -5 -5 -4 --------- Run | Yrd Mat Min Exi Min Mat Gar Mat Gar Fac Gar Fac Gar Fac Ext Cet Arc Hub Fac Distress Signals 16 | . . . . . 1 . 1 . 1 . 1 . 2 4 2 . 3 1 Communications Jammed 19 | . . . . . . . . . . . . . . . . . . 19 Distress Signals 19 | . . . . . . . . . . . . . . . . . . 19 Times Spotted 397 | . 6 1 . 9 15 22 17 42 33 37 52 . 22 54 9 5 43 30 Peak Tracking Total 16 | . 3 1 . 3 5 7 7 5 8 6 9 . 4 6 5 3 16 7 Tactical Retreats 18 | . 1 . . . 3 . 2 1 . 1 2 . . 2 . . 5 1 Traps | -11 -10 -10 -10 -9 -8 -8 -8 -8 -7 -7 -6 -6 -5 -5 -5 -5 -5 -4 ------- Run | Yrd Mat Min Exi Min Mat Gar Mat Gar Fac Gar Fac Gar Fac Ext Cet Arc Hub Fac Traps Triggered 17 | . . . . . 1 6 . 2 1 4 . 1 . 2 . . . . Indirectly . | . . . . . . . . . . . . . . . . . . . Trap Hack Attempts . | . . . . . . . . . . . . . . . . . . . Triggered . | . . . . . . . . . . . . . . . . . . . Disarmed . | . . . . . . . . . . . . . . . . . . . Reprogrammed . | . . . . . . . . . . . . . . . . . . . Reused . | . . . . . . . . . . . . . . . . . . . Traps Extracted . | . . . . . . . . . . . . . . . . . . . Installed . | . . . . . . . . . . . . . . . . . . . Triggered . | . . . . . . . . . . . . . . . . . . . Machines | -11 -10 -10 -10 -9 -8 -8 -8 -8 -7 -7 -6 -6 -5 -5 -5 -5 -5 -4 ---------- Run | Yrd Mat Min Exi Min Mat Gar Mat Gar Fac Gar Fac Gar Fac Ext Cet Arc Hub Fac Machines Disabled 67 | . . . . . 1 . . 6 16 6 4 4 . 8 2 2 12 6 Max in Single Turn 11 | . . . . . 1 . . 1 11 1 2 1 . 2 1 1 9 2 Garrison Access 1 | . . . . . . . . . . . . . . . . . 1 . Garrison Relay 14 | . . . . . . . . 5 . 5 . 4 . . . . . . Network Hub 1 | . . . . . . . . . . . . . . . . . 1 . Machines Repaired . | . . . . . . . . . . . . . . . . . . . Machines Dismantled . | . . . . . . . . . . . . . . . . . . . Machines Sabotaged . | . . . . . . . . . . . . . . . . . . . Overloaded Fab Kills . | . . . . . . . . . . . . . . . . . . . Hacking | -11 -10 -10 -10 -9 -8 -8 -8 -8 -7 -7 -6 -6 -5 -5 -5 -5 -5 -4 --------- Run | Yrd Mat Min Exi Min Mat Gar Mat Gar Fac Gar Fac Gar Fac Ext Cet Arc Hub Fac Machines Accessed 74 | . 2 1 1 1 5 3 3 3 4 3 12 1 6 13 3 1 3 9 Terminals 51 | . 2 . . 1 2 3 1 3 1 3 5 1 4 13 3 . 3 6 Fabricators 7 | . . . . . . . . . . . 3 . 2 . . . . 2 Repair Stations 1 | . . . . . . . . . . . 1 . . . . . . . Recycling Units 4 | . . . . . 2 . 1 . . . 1 . . . . . . . Scanalyzers 2 | . . . . . . . . . 1 . 1 . . . . . . . Garrison Access 6 | . . . . . 1 . 1 . 2 . 1 . . . . . . 1 Total Hacks 229 | . 4 1 4 3 14 9 6 7 8 11 40 1 8 31 5 25 13 39 Successful 104 | . 1 1 4 . 8 2 5 2 5 1 18 1 2 9 2 25 2 16 Failed 125 | . 3 . . 3 6 7 1 5 3 10 22 . 6 22 3 . 11 23 Catastrophic 35 | . 3 . . . 1 1 . 1 . 5 4 . 4 7 2 . 2 5 Database Lockouts . | . . . . . . . . . . . . . . . . . . . Manual 53 | . . . . . 6 . . . . . 12 . 1 4 2 1 11 16 Terminals 154 | . 4 . . 3 7 9 3 7 2 11 18 1 5 31 5 . 13 35 Fabricators 12 | . . . . . . . . . . . 6 . 3 . . . . 3 Repair Stations 3 | . . . . . . . . . . . 3 . . . . . . . Recycling Units 10 | . . . . . 6 . 1 . . . 3 . . . . . . . Scanalyzers 12 | . . . . . . . . . 3 . 9 . . . . . . . Garrison Access 8 | . . . . . 1 . 2 . 3 . 1 . . . . . . 1 Terminal Hacks 62 | . 1 1 4 . 1 2 2 2 1 1 2 1 . 8 2 25 . 9 Record 31 | . . . 4 . . . . . . . . . . . 2 25 . . Part Schematic 3 | . . . . . . . . . . . . . . 2 . . . 1 Prototype ID Bank 3 | . . . . . 1 . . . . . . . . . . . . 2 Open Door 10 | . . 1 . . . 1 . 1 . . . 1 . 6 . . . . Branch Access Points 2 | . 1 . . . . . . . . . 1 . . . . . . . Emergency Access Points 3 | . . . . . . 1 . 1 . 1 . . . . . . . . Terminal Index 1 | . . . . . . . . . . . . . . . . . . 1 Unreport Threat 3 | . . . . . . . . . 1 . . . . . . . . 2 Registered Components 2 | . . . . . . . 1 . . . . . . . . . . 1 Zone Layout 4 | . . . . . . . 1 . . . 1 . . . . . . 2 Fabricator Hacks 5 | . . . . . . . . . . . 3 . 2 . . . . . Network Status 1 | . . . . . . . . . . . . . 1 . . . . . Load Schematic 1 | . . . . . . . . . . . 1 . . . . . . . Build 3 | . . . . . . . . . . . 2 . 1 . . . . . Repair Station Hacks 2 | . . . . . . . . . . . 2 . . . . . . . Scan Component 1 | . . . . . . . . . . . 1 . . . . . . . Repair 1 | . . . . . . . . . . . 1 . . . . . . . Recycling Unit Hacks 6 | . . . . . 4 . 1 . . . 1 . . . . . . . Report Inventory 4 | . . . . . 2 . 1 . . . 1 . . . . . . . Retrieve Components 2 | . . . . . 2 . . . . . . . . . . . . . Scanalyzer 8 | . . . . . . . . . 1 . 7 . . . . . . . Insert Component 4 | . . . . . . . . . 1 . 3 . . . . . . . Analyze 4 | . . . . . . . . . . . 4 . . . . . . . Garrison Access Hacks 8 | . . . . . 1 . 2 . 3 . 1 . . . . . . 1 Unlock Access 6 | . . . . . 1 . 1 . 2 . 1 . . . . . . 1 Coupler Status 2 | . . . . . . . 1 . 1 . . . . . . . . . Unauthorized Hacks 13 | . . . . . 2 . . . . . 2 . . 1 . . 2 6 Terminals 13 | . . . . . 2 . . . . . 2 . . 1 . . 2 6 Track 1 | . . . . . . . . . . . . . . . . . . 1 Botnet 11 | . . . . . 2 . . . . . 2 . . 1 . . 2 4 Operators 1 | . . . . . . . . . . . . . . . . . . 1 Fabricators . | . . . . . . . . . . . . . . . . . . . Repair Stations . | . . . . . . . . . . . . . . . . . . . Recycling Units . | . . . . . . . . . . . . . . . . . . . Scanalyzers . | . . . . . . . . . . . . . . . . . . . Garrison Access . | . . . . . . . . . . . . . . . . . . . Data Cores Recovered . | . . . . . . . . . . . . . . . . . . . Used . | . . . . . . . . . . . . . . . . . . . Hacking Detections 59 | . 2 . . 1 5 3 2 1 3 2 11 . 5 11 2 . 3 8 Full Trace Events 19 | . 2 . . 1 1 2 . . . 2 5 . . 5 . . 1 . Feedback Events 3 | . . . . . 1 1 . . . . . . . 1 . . . . Corruption 3 | . . . . . 1 1 . . . . . . . 1 . . . . Feedback Blocked . | . . . . . . . . . . . . . . . . . . . Robot Schematics Acquired . | . . . . . . . . . . . . . . . . . . . Robots Built 1 | . . . . . . . . . . . . . 1 . . . . . Authchips . | . . . . . . . . . . . . . . . . . . . Time 84 | . . . . . . . . . . . . . 84 . . . . . Total Robot Build Rating 6 | . . . . . . . . . . . . . 6 . . . . . Part Schematics Acquired 4 | . . . . . . . . . . . 1 . . 2 . . . 1 Parts Built 2 | . . . . . . . . . . . 2 . . . . . . . Authchips . | . . . . . . . . . . . . . . . . . . . Time 128 | . . . . . . . . . . . 128 . . . . . . . Total Part Build Rating 16 | . . . . . . . . . . . 16 . . . . . . . Parts Repaired 1 | . . . . . . . . . . . 1 . . . . . . . Time 47 | . . . . . . . . . . . 47 . . . . . . . Parts Recycled . | . . . . . . . . . . . . . . . . . . . Recycled Matter . | . . . . . . . . . . . . . . . . . . . Retrieved Matter . | . . . . . . . . . . . . . . . . . . . Retrieved Components 3 | . . . . . 3 . . . . . . . . . . . . . Parts Scanalyzed 3 | . . . . . . . . . 1 . 2 . . . . . . . Part Schematics Acquired 1 | . . . . . . . . . . . 1 . . . . . . . Parts Damaged 2 | . . . . . . . . . 1 . 1 . . . . . . . Bothacking | -11 -10 -10 -10 -9 -8 -8 -8 -8 -7 -7 -6 -6 -5 -5 -5 -5 -5 -4 ------------ Run | Yrd Mat Min Exi Min Mat Gar Mat Gar Fac Gar Fac Gar Fac Ext Cet Arc Hub Fac Used RIF Installer 5 | . . . . . . 1 . 2 . 1 . 1 . . . . . . Coupler Efficiency 2 | . . . . . . . . 1 . . . 1 . . . . . . Threat Obfuscator 2 | . . . . . . . . 1 . 1 . . . . . . . . Robots Hacked 47 | . . . . . . . . . . 6 19 . 13 5 . . 2 2 Non-combat 10 | . . . . . . . . . . . 4 . 6 . . . . . Combat 37 | . . . . . . . . . . 6 15 . 7 5 . . 2 2 Robot Hacks Applied 57 | . . . . . . . . . . 6 26 . 16 5 . . 2 2 parse_system 7 | . . . . . . . . . . . 4 . 2 . . . 1 . no_distress 1 | . . . . . . . . . . . 1 . . . . . . . find_chute 1 | . . . . . . . . . . . . . 1 . . . . . map_earth 1 | . . . . . . . . . . . . . 1 . . . . . find_fabricator 2 | . . . . . . . . . . . 1 . 1 . . . . . find_dsf 1 | . . . . . . . . . . . 1 . . . . . . . drop_inventory 1 | . . . . . . . . . . . . . 1 . . . . . find_station 1 | . . . . . . . . . . . 1 . . . . . . . map_route 1 | . . . . . . . . . . . . . 1 . . . . . scatter_targeting 1 | . . . . . . . . . . . 1 . . . . . . . mark_system 1 | . . . . . . . . . . . 1 . . . . . . . broadcast_data 1 | . . . . . . . . . . . 1 . . . . . . . overload_power 2 | . . . . . . . . . . . 2 . . . . . . . amplify_resonance 2 | . . . . . . . . . . . 1 . . 1 . . . . disable_weapons 5 | . . . . . . . . . . . 2 . . 2 . . . 1 go_dormant 1 | . . . . . . . . . . 1 . . . . . . . . streamctrl_high 1 | . . . . . . . . . . . . . . . . . 1 . formatsys_low 3 | . . . . . . . . . . . 1 . 2 . . . . . formatsys_high 24 | . . . . . . . . . . 5 9 . 7 2 . . . 1 Relay Couplers Released 56 | . . . . . . . . 19 . 20 . 15 . . . . 2 . Machine Destruction 56 | . . . . . . . . 19 . 20 . 15 . . . . 2 . Attached 20 | . . . . . . . . 1 . 8 4 1 4 1 . . 1 . Fabnet Peak Effective % . | . . . . . . . . . . . . . . . . . . . Robots Rewired 19 | . . . . . . . . 10 . . . 6 . 3 . . . . Allies Hacked 3 | . . . . . . . . . . . . . 3 . . . . . Hacks Repelled . | . . . . . . . . . . . . . . . . . . . Allies | -11 -10 -10 -10 -9 -8 -8 -8 -8 -7 -7 -6 -6 -5 -5 -5 -5 -5 -4 -------- Run | Yrd Mat Min Exi Min Mat Gar Mat Gar Fac Gar Fac Gar Fac Ext Cet Arc Hub Fac Total Allies 71 | . . . . 1 . 1 . 10 . 7 10 10 10 15 5 . 1 1 Largest Group 17 | . . . . 1 . 1 . 7 3 4 5 10 17 13 11 10 8 1 Highest-Rated Group 885 | . . . . 31 . 39 . 186 75 207 261 574 885 528 786 786 723 56 Highest-Rated Ally 159 | . . . . 31 . 39 . 40 31 95 95 116 137 159 159 159 137 56 Total Orders 6 | . . . 2 . 2 2 . . . . . . . . . . . . EXPLORE 3 | . . . 1 . 1 1 . . . . . . . . . . . . RETURN 3 | . . . 1 . 1 1 . . . . . . . . . . . . Ally Attacks 728 | . . . . 16 2 17 . 59 8 52 119 . 75 195 50 18 110 7 Total Damage 20950 | . . . . 229 9 205 . 1429 152 1390 2733 . 2319 5255 1267 780 4991 191 Kills 152 | . . . . . . 2 . 18 . 20 14 . 16 34 5 4 37 2 Allies Corrupted 7 | . . . . . 2 . . . . . . . 1 . . . 4 . Allies Melted 2 | . . . . . . . . . . . 1 . . 1 . . . . Intel | -11 -10 -10 -10 -9 -8 -8 -8 -8 -7 -7 -6 -6 -5 -5 -5 -5 -5 -4 ------- Run | Yrd Mat Min Exi Min Mat Gar Mat Gar Fac Gar Fac Gar Fac Ext Cet Arc Hub Fac Robot Analysis Total . | . . . . . . . . . . . . . . . . . . . Derelict Logs Recovered 2 | . . . . 2 . . . . . . . . . . . . . . Drone Launches 10 | . . . 3 . 6 1 . . . . . . . . . . . . Drone Recoveries 8 | . . . 3 . 4 1 . . . . . . . . . . . . Exploration | -11 -10 -10 -10 -9 -8 -8 -8 -8 -7 -7 -6 -6 -5 -5 -5 -5 -5 -4 ------------- Run | Yrd Mat Min Exi Min Mat Gar Mat Gar Fac Gar Fac Gar Fac Ext Cet Arc Hub Fac Turns Passed 16284 | 92 222 234 288 430 602 1000 478 2542 588 2425 1620 1372 751 1425 614 232 584 785 Spaces Moved 10709 | 53 119 135 129 224 252 616 255 1340 407 1662 974 1034 593 995 447 186 439 849 Core 89 | 7 . . . . . . . . . . . . . . . . 22 60 Treads 1593 | 35 119 135 129 224 158 . . 793 . . . . . . . . . . Legs 8200 | 11 . . . . 94 616 255 547 407 1662 974 1034 593 995 447 186 379 . Wheels 552 | . . . . . . . . . . . . . . . . . . 552 Hover . | . . . . . . . . . . . . . . . . . . . Flight 275 | . . . . . . . . . . . . . . . . . 38 237 Fastest Speed 26 | 50 160 160 160 160 120 120 120 100 105 113 105 105 105 105 105 105 26 26 Average Speed 117 | 137 160 160 160 160 145 120 121 144 107 119 128 105 105 107 107 110 105 64 Slowest Speed 240 | 160 160 160 160 160 160 120 123 240 115 122 190 107 105 187 112 112 190 200 Overloaded Moves . | . . . . . . . . . . . . . . . . . . . Propulsion Burnouts . | . . . . . . . . . . . . . . . . . . . Robots Hopped 2 | . . . . . . . . . . . . . . . . . . 2 Cave-ins Triggered 1 | . . . . . . . . . . . . . . . . . . 1 Exploration Rate (%) 52 | 5 39 34 86 46 20 64 24 95 14 96 29 83 15 93 88 96 47 16 Regions Visited 18 Branch Regions 7 Pre-discovered Areas 2 | . . . 1 1 . . . . . . . . . . . . . . Known Exits Taken 6 | . 1 . . . 1 . 1 . 1 . 1 . . . . . 1 . Unknown Exits Taken 8 | 1 . 1 1 1 . . . . . . . . 1 1 1 1 . . Scrap Searched . | . . . . . . . . . . . . . . . . . . . Spaces Dug 18 | . . . . . . . . . . 1 3 6 . . . . 1 7 Terrain Destroyed 915 | . . . . 10 44 31 15 75 102 6 32 6 5 194 81 1 192 121 Melee 15 | . . . . . . . . . . 1 3 3 . . . . 1 7 Projectile 56 | . . . . . . . . . 6 5 9 3 5 17 6 1 4 . AOE 844 | . . . . 10 44 31 15 75 96 . 20 . . 177 75 . 187 114 Terrain Rammed . | . . . . . . . . . . . . . . . . . . . Walls Destroyed . | . . . . . . . . . . . . . . . . . . . Machines Disabled . | . . . . . . . . . . . . . . . . . . . Actions | -11 -10 -10 -10 -9 -8 -8 -8 -8 -7 -7 -6 -6 -5 -5 -5 -5 -5 -4 --------- Run | Yrd Mat Min Exi Min Mat Gar Mat Gar Fac Gar Fac Gar Fac Ext Cet Arc Hub Fac Total 13213 | 67 133 143 210 256 378 789 363 1765 499 1938 1247 1264 699 1217 526 201 519 999 Wait 676 | 1 . . 80 4 28 55 20 33 5 26 113 116 51 54 22 2 16 50 Move 10688 | 52 118 134 128 223 251 614 255 1339 406 1661 974 1033 592 994 446 185 438 845 Hop 2 | . . . . . . . . . . . . . . . . . . 2 Pick Up 144 | 3 3 3 . 4 8 6 9 26 9 33 13 8 2 6 7 1 1 2 Fast Attach 90 | 6 1 . . . 6 . 6 7 8 8 3 3 1 6 . 1 14 20 Attach 70 | . . 1 . . 6 4 1 11 3 13 6 1 1 6 3 . 8 6 Detach 33 | . 1 . . . 3 . 1 4 . 2 5 2 . 2 . . 7 6 Swap 223 | 2 . . 2 3 11 19 10 30 13 29 31 9 11 24 8 4 7 10 Drop 167 | . 1 . . 2 9 11 15 27 14 34 15 8 6 5 8 2 7 3 Fire 720 | . 9 5 . 20 56 50 46 146 37 66 73 14 30 84 21 6 20 37 Melee 108 | . . . . . . . . . . 45 12 21 . . 11 . 1 18 Ram . | . . . . . . . . . . . . . . . . . . . Kick 14 | . . . . . . . . . 4 . 1 . 3 6 . . . . Crush 3 | 3 . . . . . . . . . . . . . . . . . . Escape Stasis 57 | . . . . . . 30 . . . 18 . . . 9 . . . . Rewire 218 | . . . . . . . . 142 . 3 1 49 2 21 . . . . Trap . | . . . . . . . . . . . . . . . . . . . Miscellaneous . | . . . . . . . . . . . . . . . . . . . Route ------- -11/Scrapyard -10/Materials (discovered 2 exits: *Min x2) -10/Mines -10/Exiles (discovered 2 exits: *Min x2) -9/Mines -8/Materials -8/Garrison (discovered 2 exits: *Mat x2) -8/Materials (discovered 2 exits: *Fac / Gar) -8/Garrison (discovered 4 exits: *Fac x3 / [*Mat]) -7/Factory (discovered 2 exits: Gar / Gar) -7/Garrison (discovered 3 exits: *Fac x3) -6/Factory (discovered 4 exits: *Fac / Low x2 / Gar) -6/Garrison (discovered 3 exits: *Fac x3) -5/Factory (discovered 2 exits: [*Upp] / *Ext) -5/Extension (discovered 2 exits: *Fac / *Cet) -5/Cetus (discovered 3 exits: *Fac x2 / *Arc) -5/Archives (discovered 3 exits: *Fac / *Hub x2) -5/Hub_04(d) (discovered 2 exits: *Fac x2) -4/Factory (discovered 1 exit: Gar) History --------- Turn | Location | Event 11 | -11/Scrapyard | Discovered new exit (range 15) 93 | -11/Scrapyard | Entered Materials 127 | -10/Materials | Identified exit to Mines 314 | -10/Materials | Build established: Mutant 315 | -10/Materials | Entered Mines 372 | -10/Mines | Met a Derelict bent on vengeance 458 | -10/Mines | Found the Drone Emporium 465 | -10/Mines | Found Prototype Device 541 | -10/Mines | Deemed a non-threat by the Exiles lab entrance 542 | -10/Mines | Discovered new exit (range 5) 549 | -10/Mines | Entered Exiles 570 | -10/Exiles | Discovered new exit (range 15) 589 | -10/Exiles | Met 8R-AWN 589 | -10/Exiles | Identified Thief Drone Bay 622 | -10/Exiles | Discovered new exit (range 101) 698 | -10/Exiles | Met EX-HEX 741 | -10/Exiles | Met EX-BIN 764 | -10/Exiles | Met EX-DEC 775 | -10/Exiles | Learned location of Zion (-6) 837 | -10/Exiles | Entered Mines 843 | -9/Mines | Escorted by a lone wolf Derelict 863 | -9/Mines | Learned location of Storage (-9) 914 | -9/Mines | Learned location of 1 exit from Lower Caves 1037 | -9/Mines | Learned 2 Materials zone layouts 1248 | -9/Mines | Discovered new exit (range 13) 1267 | -9/Mines | Entered Materials 1267 | -8/Materials | Evolved 4 slots: Propulsion x2, Utility x2 1610 | -8/Materials | Lost 3 parts (1n1u1w) 1868 | -8/Materials | Identified exit to Garrison 1869 | -8/Materials | Entered Garrison 1885 | -8/Garrison | Triggered checkpoint 2033 | -8/Garrison | Triggered checkpoint 2037 | -8/Garrison | Discovered new exit (range 44) 2065 | -8/Garrison | Triggered checkpoint 2068 | -8/Garrison | Triggered checkpoint 2126 | -8/Garrison | Destroyed 10 combat bots 2141 | -8/Garrison | Build established: Scavenger-Mutant 2145 | -8/Garrison | Triggered checkpoint 2284 | -8/Garrison | Discovered new exit (range 11) 2317 | -8/Garrison | Triggered checkpoint 2366 | -8/Garrison | Rescued a captive Derelict 2817 | -8/Garrison | Installed Relay Interface Framework 2869 | -8/Garrison | Entered Materials 3208 | -8/Materials | Discovered new exit (range 16) 3347 | -8/Materials | Identified exit to Garrison 3347 | -8/Materials | Entered Garrison 3357 | -8/Garrison | Triggered checkpoint 3396 | -8/Garrison | Discovered new exit (range 6) 3479 | -8/Garrison | Lost 3 allies 3601 | -8/Garrison | Triggered checkpoint 3655 | -8/Garrison | System corruption reached 10% 3682 | -8/Garrison | Lost 3 parts (1p1u1w) 3764 | -8/Garrison | Expanded RIF knowledge: Coupler Efficiency 3800 | -8/Garrison | Garrison Relay disabled 3925 | -8/Garrison | Triggered checkpoint 3949 | -8/Garrison | Triggered checkpoint 3950 | -8/Garrison | Core integrity fell below 50% 4067 | -8/Garrison | Discovered new exit (range 11) 4105 | -8/Garrison | Expanded RIF knowledge: Threat Obfuscation 4415 | -8/Garrison | Triggered checkpoint 4463 | -8/Garrison | Triggered checkpoint 4602 | -8/Garrison | Garrison Relay disabled 4741 | -8/Garrison | Triggered checkpoint 4807 | -8/Garrison | Garrison Relay disabled 4949 | -8/Garrison | Triggered checkpoint 4991 | -8/Garrison | Triggered checkpoint 5044 | -8/Garrison | Core integrity fell below 20% 5138 | -8/Garrison | Garrison Relay disabled 5163 | -8/Garrison | Build established: Bothacker-Mutant 5202 | -8/Garrison | Discovered new exit (range 12) 5375 | -8/Garrison | Triggered checkpoint 5389 | -8/Garrison | Garrison Relay disabled 5504 | -8/Garrison | P-60 Hacker assimilated allied KI-SMD(h) 5527 | -8/Garrison | Triggered checkpoint 5579 | -8/Garrison | Lost 3 parts (1n2w) 5632 | -8/Garrison | Discovered new exit (range 14) 5889 | -8/Garrison | Entered Factory 5889 | -7/Factory | Accompanied by 3 allies 5889 | -7/Factory | Evolved 2 slots: Utility x2 5895 | -7/Factory | Identified exit to Garrison 5950 | -7/Factory | Garrison activated, responded to threat 5983 | -7/Factory | Lost 3 allies 6289 | -7/Factory | First assault squad dispatched 6434 | -7/Factory | Garrison activated, responded to threat 6468 | -7/Factory | Identified exit to Garrison 6475 | -7/Factory | Core integrity fell below 50% 6477 | -7/Factory | Entered Garrison 6496 | -7/Garrison | Lost 3 parts (2n1w) 6507 | -7/Garrison | Triggered checkpoint 6562 | -7/Garrison | Expanded RIF knowledge: Threat Obfuscation 6619 | -7/Garrison | Garrison Relay disabled 6689 | -7/Garrison | Triggered checkpoint 6869 | -7/Garrison | Triggered checkpoint 6918 | -7/Garrison | Discovered new exit (range 14) 6924 | -7/Garrison | Lost 4 parts (1p1n1u1w) 7033 | -7/Garrison | Triggered checkpoint 7052 | -7/Garrison | Core integrity fell below 20% 7076 | -7/Garrison | Lost 4 parts (3n1u) 7113 | -7/Garrison | Triggered checkpoint 7155 | -7/Garrison | Triggered checkpoint 7471 | -7/Garrison | Triggered checkpoint 7505 | -7/Garrison | Garrison Relay disabled 7576 | -7/Garrison | Discovered new exit (range 11) 7654 | -7/Garrison | Found embedded Infiltrators 7797 | -7/Garrison | Triggered checkpoint 7844 | -7/Garrison | Garrison Relay disabled 7906 | -7/Garrison | Garrison Relay disabled 7945 | -7/Garrison | Discovered new exit (range 10) 8437 | -7/Garrison | Triggered checkpoint 8902 | -7/Garrison | Entered Factory 8902 | -6/Factory | Accompanied by 3 allies 8902 | -6/Factory | Evolved 2 slots: Utility x2 9496 | -6/Factory | Discovered new exit (range 4) 9573 | -6/Factory | Lost 4 allies 9716 | -6/Factory | Identified exit to Lower Caves 9897 | -6/Factory | Fabricated Quantum Rifle (x2) 10002 | -6/Factory | Repaired Broken Quantum Rifle 10189 | -6/Factory | Garrison activated, responded to threat 10243 | -6/Factory | Garrison activated, responded to threat 10310 | -6/Factory | Lost 3 allies 10367 | -6/Factory | Spotted B-75 Beast 10522 | -6/Factory | Identified exit to Garrison 10522 | -6/Factory | Entered Garrison 10522 | -6/Garrison | Discovered recently destroyed garrison 10595 | -6/Garrison | Build established: Mutant 10605 | -6/Garrison | Discovered new exit (range 14) 10651 | -6/Garrison | Expanded RIF knowledge: Coupler Efficiency 10711 | -6/Garrison | Garrison Relay disabled 10840 | -6/Garrison | Rewired B-75 Beast 10849 | -6/Garrison | Rewired B-86 Titan 10993 | -6/Garrison | Discovered new exit (range 12) 11014 | -6/Garrison | Build established: Bothacker-Mutant 11022 | -6/Garrison | Found embedded Infiltrators 11047 | -6/Garrison | Garrison Relay disabled 11075 | -6/Garrison | Rescued a captive Derelict 11078 | -6/Garrison | Rescued a captive Derelict 11374 | -6/Garrison | Garrison Relay disabled 11502 | -6/Garrison | Discovered new exit (range 14) 11614 | -6/Garrison | Garrison Relay disabled 11894 | -6/Garrison | Entered Factory 11894 | -5/Factory | Accompanied by 10 allies 11894 | -5/Factory | Evolved 2 slots: Utility x2 12131 | -5/Factory | Discovered new exit (range 15) 12194 | -5/Factory | First assault squad dispatched 12289 | -5/Factory | Discovered new exit (range 16) 12418 | -5/Factory | Lost 5 allies 12488 | -5/Factory | Lost 4 allies 12512 | -5/Factory | P-70 Sage assimilated allied Sentinel 6b 12516 | -5/Factory | Fabricated I-47 Archangel? 12552 | -5/Factory | Lost 3 allies 12645 | -5/Factory | Entered Extension 12645 | -5/Extension | Accompanied by 4 allies 12723 | -5/Extension | Spotted B-75 Beast 12727 | -5/Extension | Assimilated Beast 6a with formatsys_high 12734 | -5/Extension | Spotted B-75 Beast 12768 | -5/Extension | Destroyed B-75 Beast 12917 | -5/Extension | Rescued a captive Derelict 12918 | -5/Extension | Rescued a captive Derelict 12958 | -5/Extension | Rescued a captive Derelict 13042 | -5/Extension | Rescued a captive Derelict 13048 | -5/Extension | Rescued a captive Derelict 13136 | -5/Extension | Rescued a captive Derelict 13142 | -5/Extension | Rescued a captive Derelict 13270 | -5/Extension | Disrupted transfer network 13528 | -5/Extension | Discovered new exit (range 16) 13530 | -5/Extension | Discovered new exit (range 14) 13679 | -5/Extension | Rescued a captive Derelict 13680 | -5/Extension | Rescued a captive Derelict 13712 | -5/Extension | Rescued A7 13719 | -5/Extension | Build established: Scavenger-Mutant 13845 | -5/Extension | First assault squad dispatched 14070 | -5/Extension | Entered Cetus 14070 | -5/Cetus | Accompanied by 11 allies (A7) 14075 | -5/Cetus | Acquired a Cetus Manufacturing Module code from A7 14089 | -5/Cetus | Spotted Cetus Guard 14089 | -5/Cetus | Spotted Cetus Guard 14091 | -5/Cetus | Spotted Cetus Guard 14096 | -5/Cetus | Destroyed Cetus Guard 14099 | -5/Cetus | Spotted Cetus Guard 14100 | -5/Cetus | Destroyed Cetus Guard 14108 | -5/Cetus | Destroyed Cetus Guard 14115 | -5/Cetus | Destroyed Cetus Guard 14135 | -5/Cetus | Lost 3 allies 14166 | -5/Cetus | Discovered new exit (range 16) 14273 | -5/Cetus | Started Cetus Manufacturing Module 14286 | -5/Cetus | Discovered new exit (range 16) 14298 | -5/Cetus | Manufactured an Enhanced Grunt 14312 | -5/Cetus | Spotted Cetus Guard 14312 | -5/Cetus | Spotted Cetus Guard 14315 | -5/Cetus | Spotted Cetus Guard 14315 | -5/Cetus | Spotted Cetus Guard 14321 | -5/Cetus | Allies destroyed Cetus Guard 14323 | -5/Cetus | Manufactured an Enhanced Grunt 14329 | -5/Cetus | Allies destroyed Cetus Guard 14335 | -5/Cetus | Allies destroyed Cetus Guard 14345 | -5/Cetus | Allies destroyed Cetus Guard 14348 | -5/Cetus | Manufactured an Enhanced Grunt 14348 | -5/Cetus | Discovered new exit (range 16) 14354 | -5/Cetus | Met Revision 17 14359 | -5/Cetus | System corruption reached 10% 14366 | -5/Cetus | Lost 3 allies 14373 | -5/Cetus | Manufactured an Enhanced Grunt 14398 | -5/Cetus | Manufactured an Enhanced Grunt 14436 | -5/Cetus | Escorted A7 to Cetus Mainframe 14528 | -5/Cetus | Found a strange terminal 14684 | -5/Cetus | Entered Archives 14684 | -5/Archives | Accompanied by 10 allies (A7) 14689 | -5/Archives | Received a hacking code to weaken MAIN.C 14726 | -5/Archives | Discovered new exit (range 16) 14739 | -5/Archives | Discovered new exit (range 16) 14774 | -5/Archives | Unable to access archive contents 14787 | -5/Archives | Unable to access archive contents 14800 | -5/Archives | Unable to access archive contents 14812 | -5/Archives | Unable to access archive contents 14857 | -5/Archives | Discovered new exit (range 15) 14916 | -5/Archives | Entered Hub_04(d) 14916 | -5/Hub_04(d) | Accompanied by 8 allies 15269 | -5/Hub_04(d) | Discovered new exit (range 9) 15300 | -5/Hub_04(d) | Identified exit to Factory 15317 | -5/Hub_04(d) | Garrison activated, responded to threat 15384 | -5/Hub_04(d) | Network Hub disabled 15384 | -5/Hub_04(d) | Discovered exit to Factory (range 11) 15389 | -5/Hub_04(d) | Spotted Lightning 15391 | -5/Hub_04(d) | Spotted Lightning 15393 | -5/Hub_04(d) | Spotted Lightning 15396 | -5/Hub_04(d) | Spotted Lightning 15397 | -5/Hub_04(d) | Spotted Lightning 15400 | -5/Hub_04(d) | Spotted Lightning 15428 | -5/Hub_04(d) | Lost 8 allies 15432 | -5/Hub_04(d) | System corruption reached 30% 15483 | -5/Hub_04(d) | Core integrity fell below 50% 15492 | -5/Hub_04(d) | Lost 11 parts (5n4u2w) 15500 | -5/Hub_04(d) | Entered Factory 15500 | -4/Factory | Evolved 2 slots: Propulsion x2 15728 | -4/Factory | Lost 4 parts (2n2u) 15985 | -4/Factory | Garrison activated, responded to threat 16026 | -4/Factory | Identified exit to Garrison 16098 | -4/Factory | Crushed by falling debris 16123 | -4/Factory | Core integrity fell below 50% 16150 | -4/Factory | Lost 17 parts (2p6n5u4w) 16280 | -4/Factory | Core integrity fell below 20% 16283 | -4/Factory | System corruption reached 10% 16284 | -4/Factory | Lost 3 parts (1n1u1w) 16285 | -4/Factory | Destroyed by H-77 Assassin with High-powered Shotgun Last Messages --------------- 16253_ Destroyed Wheel. 16253_ Slug penetrates Wall. 16253_ Lrn. Missile Launcher destroyed. 16253_ Slug penetrates Wall. 16253_ Penetrated by Slug. 16253_ Adv. Visual Processing Unit destroyed. 16254_ Drone sends a signal. 16255_ Dropped Med. Storage Unit. 16256_ Subcomponent Replicator disabled. 16258_ The unstable cave ceiling collapses. 16258_ Slug penetrates Door. 16258_ P-70 Sage resets H-77 Assassin, system corruption cleaned. 16278_ Penetrated by Slug. 16278_ Slug penetrates Wall. 16281_ Penetrated by Slug. 16281_ Slug penetrates P-70 Sage. 16281_ Slug penetrates Wall. 16284_ Penetrated by Slug. 16284_ Slug penetrates Wall. 16285_ Penetrated by Slug. Map ----- +----------------------------------------------------+ | ????? ????????????????# !! ## """ """ # | | ????? ??????????? ????# ## # | | ????? ??????????# ????# ## """ """ # | | ????? ??????????# ????# ## """ """ # | | ????? ??????????# ????# ! ## """ """ # | | ????? ??????????# ????# ## # | | ????# ??????????# #???# # # | | ????# #?????????# ##### # |# | | ????+ #?????????# ## # | | ????# #?????????# #####+#############+###### | | ????# #?????#####" ###### | | ????# #?????# # | | ????# #????## " # """ | | ##### #??? ## """ " # " """ | | # #?? #?# # p """ | | # ## #??# !| !# "" """ | | # # "##?# # | | #?# # | | #?# """ """ + | | + #?# """ """ # | | # #?# """ """ # h | | =# #?# # | | %# #?# # ################ | | =# u################ # ##????????# | | # t A k k R # ####?????????# | | # @ ###????????????# | | ##### #############??# | | #???# # #??# | | #???# # """" """" #??# | | #???####+################# # """" """" ####### | | #?????? ???????????????# # """" """" # | | #?????? ??????????##### # """" """" # "" " | | #??????"" "????#######T ## # """" """" # "" " | | #??????"" ""???+ + """" """" # """ " | | #?????""" """??##### # """" """" # """ | | #????? ???????# # # """ | | #?????""" ""???????# ######## # | | #???????? ""???????# ######## # ! | | #???????? "????????# ##! ! # ### | | #???????? ????????# ## # ##! | | #???????? ????????# ## !! ############## | | ?????????? ????????# ## !! ## ## | | ??#+#?????#????????# ## !! ## """ """ # | | ??# #??????????????# ## ## """ """ #### | | ### #########??????# #?? ## """ """ #??# | | ######## #?###+### #??## # | | #?# ##+############### | | ### | | ! """ """ """ | | """ """ """ ### | +----------------------------------------------------+ Best States ------------- Heat Dissipation 78 Energy Generation 23 Energy Capacity 340 Matter Stores 300 Matter Capacity 300 Sight Range 23 Robot Scan Range 16 Terrain Scan Range 14 Terrain Scan Density 210 Jamming Range 16 Armor Coverage 675 Resistance: TH 10 Resistance: EM 15 Core Shielding 20 Weapon Shielding 33 Evasion (%) 64 Targeting Accuracy 8 Melee Accuracy 5 Launcher Accuracy 20 Target Analysis 5 Core Analysis 6 Armor Integrity Analysis 30 Recoil Reduction 4 Offensive Hacking 10 Defensive Hacking 10 Relay Coupler Types 5 Relay Coupler Value 89 Authchip Count 2 Item Schematics ----------------- Quantum Rifle | -6/Factory | Scanalyzed Mic. Antimatter Reactor | -5/Extension | Hacked Imp. Cloaking Device | -5/Extension | Hacked Enh. Quantum Rifle | -4/Factory | Hacked Robot Schematics ------------------ None Fabricated ------------ Quantum Rifle | x2 | -6/Factory I-47 Archangel | x1 | -5/Factory | Preloaded Alien Tech Used ----------------- None Achievements -------------- Assimilation Complete Error 47 Infiltrator Challenges ------------ None Game ------ Seed ShrapnelUltimateSteel Manual? 0 Play Time 02:29:59 Cumulative 149.3 hours Start 2025.01.01 @ 22:18:51 End 2025.01.05 @ 02:08:49 Sessions 3 Manual Loads 0 Difficulty Rogue Special Mode None Game No. 169 Rogue 169 Adventurer 0 Explorer 0 Win Type - Total 3 Types 2/0/1/0/0/0/0/0/0 Lore% 62 Gallery% 70 Achievement% 54 Wizard Run 0 Options --------- Layout 0 ASCII 0 Keyboard 1 Movement Numpad Keybinds 0 Fullscreen 2 Font 18/SmallcapsGlow Map View 76x50 Zoom Use 0% Tactical HUD 1 Map Filters NONE Filters NONE Steam 1 RUN: bd9e5038-3850-4605-b82c-0711dfbd2454